[Event "*** Titled Tuesday Blitz"]
[Site "Chess.com"]
[Date "2021.04.20"]
[Round "7"]
[White "BahadirOzen"]
[Black "MeekMammoth2"]
[Result "1-0"]
[WhiteElo "2687"]
[BlackElo "2453"]
[TimeControl "180+1"]
[EndTime "11:17:56 PDT"]
[Termination "BahadirOzen won by resignation"]

1. g3 {[%clk 0:03:00.9]} 1... f5 {[%clk 0:02:58.8]} 2. f4 {[%clk 0:03:00.4]}
2... Nf6 {[%clk 0:02:58.9]} 3. Nf3 {[%clk 0:03:00.5]} 3... g6 {[%clk 0:02:57.6]}
4. Bg2 {[%clk 0:03:00.7]} 4... Bg7 {[%clk 0:02:58]} 5. O-O {[%clk 0:03:00.2]}
5... O-O {[%clk 0:02:58.6]} 6. d3 {[%clk 0:03:00.6]} 6... d6 {[%clk 0:02:56]} 7.
e4 {[%clk 0:03:00.4]} 7... fxe4 {[%clk 0:02:38.2]} 8. dxe4 {[%clk 0:03:01.3]}
8... e5 {[%clk 0:02:38.8]} 9. fxe5 {[%clk 0:02:25.8]} 9... dxe5 {[%clk
0:02:39.7]} 10. Qxd8 {[%clk 0:02:25.7]} 10... Rxd8 {[%clk 0:02:38.3]} 11. Nxe5
{[%clk 0:02:26.2]} 11... Nxe4 {[%clk 0:02:21.2]} 12. Bf4 {[%clk 0:02:04.1]}
12... Nd6 {[%clk 0:01:35.5]} 13. Nc3 {[%clk 0:01:58.3]} 13... Nd7 {[%clk
0:01:24.8]} 14. Rae1 {[%clk 0:01:14.1]} 14... Nb6 {[%clk 0:01:10.8]} 15. Nd5
{[%clk 0:00:58.8]} 15... c6 {[%clk 0:00:40.9]} 16. Ne7+ {[%clk 0:00:45.6]} 16...
Kh8 {[%clk 0:00:40.2]} 17. Rd1 {[%clk 0:00:32.2]} 17... Be6 {[%clk 0:00:35.9]}
18. Rfe1 {[%clk 0:00:26.8]} 18... Nf5 {[%clk 0:00:14.6]} 19. Rxd8+ {[%clk
0:00:19]} 19... Rxd8 {[%clk 0:00:15.5]} 20. Nxf5 {[%clk 0:00:19.2]} 20... gxf5
{[%clk 0:00:14.2]} 21. Nxc6 {[%clk 0:00:15.9]} 21... bxc6 {[%clk 0:00:13.5]} 22.
Rxe6 {[%clk 0:00:16.3]} 22... Bxb2 {[%clk 0:00:11.9]} 23. Rxc6 {[%clk
0:00:11.9]} 23... Kg7 {[%clk 0:00:07.5]} 24. Bf3 {[%clk 0:00:07.1]} 24... Bf6
{[%clk 0:00:06.2]} 25. Rc7+ {[%clk 0:00:05.9]} 25... Rd7 {[%clk 0:00:06.1]} 26.
Rxd7+ {[%clk 0:00:06.2]} 26... Nxd7 {[%clk 0:00:07]} 27. Be3 {[%clk 0:00:05.8]}
27... a6 {[%clk 0:00:06.5]} 28. Kf2 {[%clk 0:00:04.3]} 28... Ne5 {[%clk
0:00:06.5]} 29. Be2 {[%clk 0:00:02.8]} 29... Kf7 {[%clk 0:00:04.6]} 30. Bxa6
{[%clk 0:00:01.8]} 30... Ng4+ {[%clk 0:00:04.7]} 31. Ke2 {[%clk 0:00:02.4]}
31... Nxe3 {[%clk 0:00:02.9]} 32. Kxe3 {[%clk 0:00:03.3]} 32... Ke6 {[%clk
0:00:02.9]} 33. Bc8+ {[%clk 0:00:02.6]} 33... Ke5 {[%clk 0:00:03.1]} 34. a4
{[%clk 0:00:03.1]} 34... Bg5+ {[%clk 0:00:03.4]} 35. Kf3 {[%clk 0:00:03.5]}
35... Bd8 {[%clk 0:00:03.5]} 36. c3 {[%clk 0:00:03]} 36... Bb6 {[%clk 0:00:04]}
37. Bd7 {[%clk 0:00:02.4]} 37... h6 {[%clk 0:00:03.7]} 38. Bc6 {[%clk
0:00:02.7]} 38... Bg1 {[%clk 0:00:03.2]} 39. h3 {[%clk 0:00:02.2]} 39... Bb6
{[%clk 0:00:02.7]} 40. c4 {[%clk 0:00:02.5]} 40... Kf6 {[%clk 0:00:02]} 41. Kf4
{[%clk 0:00:02.3]} 41... Bc7+ {[%clk 0:00:02.3]} 42. Kf3 {[%clk 0:00:02.9]}
42... Bb6 {[%clk 0:00:02.9]} 43. Bd7 {[%clk 0:00:03]} 43... Bc7 {[%clk
0:00:02.9]} 44. c5 {[%clk 0:00:03.2]} 44... Ke5 {[%clk 0:00:03.4]} 45. c6 {[%clk
0:00:03.5]} 45... f4 {[%clk 0:00:03.1]} 46. gxf4+ {[%clk 0:00:03.5]} 46... Kf6
{[%clk 0:00:03.4]} 47. Kg4 {[%clk 0:00:03.8]} 47... Kg7 {[%clk 0:00:03.4]} 48.
h4 {[%clk 0:00:03.6]} 48... Kf6 {[%clk 0:00:03.6]} 49. Bc8 {[%clk 0:00:03.7]}
49... Ke7 {[%clk 0:00:03.8]} 50. h5 {[%clk 0:00:03.9]} 50... Kf6 {[%clk
0:00:04.2]} 51. Bd7 {[%clk 0:00:04.8]} 51... Bb6 {[%clk 0:00:03.6]} 52. Kf3
{[%clk 0:00:03.9]} 52... Bc7 {[%clk 0:00:04.5]} 53. Ke4 {[%clk 0:00:04.4]} 53...
Ke7 {[%clk 0:00:04.9]} 54. f5 {[%clk 0:00:04.3]} 54... Kf6 {[%clk 0:00:05.2]}
55. Kd5 {[%clk 0:00:04.9]} 55... Ke7 {[%clk 0:00:04.8]} 56. Kc5 {[%clk
0:00:04.6]} 56... Kf6 {[%clk 0:00:05.3]} 57. Kb5 {[%clk 0:00:05]} 57... Ke5
{[%clk 0:00:05.7]} 58. a5 {[%clk 0:00:05.4]} 58... Kd6 {[%clk 0:00:06.2]} 59. a6
{[%clk 0:00:05.9]} 59... Bb8 {[%clk 0:00:06.7]} 60. Kb6 {[%clk 0:00:06.4]} 60...
Ke7 {[%clk 0:00:06.3]} 61. Kb7 {[%clk 0:00:06.4]} 61... Bd6 {[%clk 0:00:05.7]}
62. a7 {[%clk 0:00:06.7]} 62... Be5 {[%clk 0:00:05.8]} 63. a8=Q {[%clk
0:00:07.6]} 63... Kd6 {[%clk 0:00:06.7]} 64. Qa3+ {[%clk 0:00:07.4]} 64... Kd5
{[%clk 0:00:05.9]} 65. Qe7 {[%clk 0:00:07.8]} 65... Bd6 {[%clk 0:00:05.9]} 66.
Qe6+ {[%clk 0:00:08.7]} 66... Kc5 {[%clk 0:00:05.8]} 67. f6 {[%clk 0:00:09.6]}
1-0

[Event "*** Titled Tuesday Blitz"]
[Site "Chess.com"]
[Date "2021.04.20"]
[Round "7"]
[White "davidkalashian"]
[Black "Aygehovit1992"]
[Result "1-0"]
[WhiteElo "2544"]
[BlackElo "2667"]
[TimeControl "180+1"]
[EndTime "11:18:00 PDT"]
[Termination "davidkalashian won by resignation"]

1. e4 {[%clk 0:03:00.9]} 1... d6 {[%clk 0:03:00.9]} 2. d4 {[%clk 0:03:00.4]}
2... g6 {[%clk 0:03:01.8]} 3. Nc3 {[%clk 0:03:00.3]} 3... a6 {[%clk 0:03:02]} 4.
a4 {[%clk 0:02:59.8]} 4... Bg7 {[%clk 0:03:01.8]} 5. f4 {[%clk 0:02:59.7]} 5...
Nc6 {[%clk 0:03:01.8]} 6. Be3 {[%clk 0:02:58.9]} 6... Nf6 {[%clk 0:02:59.1]} 7.
Nf3 {[%clk 0:02:52.2]} 7... Nb4 {[%clk 0:02:34.9]} 8. a5 {[%clk 0:02:44.6]} 8...
Bg4 {[%clk 0:02:21.2]} 9. Be2 {[%clk 0:02:36.1]} 9... Qc8 {[%clk 0:01:56.8]} 10.
O-O {[%clk 0:02:32.8]} 10... O-O {[%clk 0:01:56.6]} 11. Ra4 {[%clk 0:02:24]}
11... c5 {[%clk 0:01:56.4]} 12. dxc5 {[%clk 0:02:03.4]} 12... dxc5 {[%clk
0:01:57.3]} 13. Ne5 {[%clk 0:02:00.8]} 13... Rd8 {[%clk 0:01:18.6]} 14. Bxg4
{[%clk 0:01:55.7]} 14... Rxd1 {[%clk 0:01:18.5]} 15. Bxc8 {[%clk 0:01:54]} 15...
Rxf1+ {[%clk 0:01:18.2]} 16. Kxf1 {[%clk 0:01:54.9]} 16... Rxc8 {[%clk
0:01:18.6]} 17. Nd3 {[%clk 0:01:39.1]} 17... Nxc2 {[%clk 0:01:12.7]} 18. Bxc5
{[%clk 0:01:38.6]} 18... Ng4 {[%clk 0:01:09.2]} 19. Ke2 {[%clk 0:01:34.2]} 19...
e5 {[%clk 0:00:39.3]} 20. h3 {[%clk 0:01:10.9]} 20... Nf6 {[%clk 0:00:38.3]} 21.
fxe5 {[%clk 0:01:05.9]} 21... Nd7 {[%clk 0:00:38.4]} 22. Bd6 {[%clk 0:01:05.9]}
22... Bh6 {[%clk 0:00:35.5]} 23. Nd5 {[%clk 0:01:03.6]} 23... Kg7 {[%clk
0:00:33.3]} 24. g4 {[%clk 0:00:58.4]} 24... Bg5 {[%clk 0:00:27.6]} 25. N3f4
{[%clk 0:00:52.6]} 25... Rc6 {[%clk 0:00:15.7]} 26. Nd3 {[%clk 0:00:30.7]} 26...
h5 {[%clk 0:00:15.3]} 27. gxh5 {[%clk 0:00:29.1]} 27... gxh5 {[%clk 0:00:16.2]}
28. N3b4 {[%clk 0:00:25]} 28... Rc4 {[%clk 0:00:14]} 29. Kd3 {[%clk 0:00:21.9]}
29... Nxb4+ {[%clk 0:00:04.1]} 30. Kxc4 {[%clk 0:00:20.6]} 30... Nc6 {[%clk
0:00:04.4]} 31. Kd3 {[%clk 0:00:18.8]} 31... Ncxe5+ {[%clk 0:00:04]} 32. Ke2
{[%clk 0:00:18.5]} 32... Nc6 {[%clk 0:00:03.8]} 33. Ra1 {[%clk 0:00:17.3]} 33...
Bd8 {[%clk 0:00:04]} 34. b4 {[%clk 0:00:15.7]} 34... f6 {[%clk 0:00:03.3]} 35.
Rg1+ {[%clk 0:00:16]} 35... Kf7 {[%clk 0:00:03.8]} 36. Nf4 {[%clk 0:00:15.7]}
36... Nd4+ {[%clk 0:00:04.1]} 37. Kd3 {[%clk 0:00:15]} 37... Nf3 {[%clk
0:00:04]} 38. Rg3 {[%clk 0:00:14.8]} 38... Nde5+ {[%clk 0:00:04.2]} 39. Ke2
{[%clk 0:00:13.3]} 39... Nd4+ {[%clk 0:00:02.9]} 40. Ke3 {[%clk 0:00:13.6]}
40... Nc2+ {[%clk 0:00:03.1]} 41. Kd2 {[%clk 0:00:13.2]} 41... Nd4 {[%clk
0:00:03.5]} 42. Bxe5 {[%clk 0:00:13]} 42... fxe5 {[%clk 0:00:03.3]} 43. Nxh5
{[%clk 0:00:13.6]} 43... Be7 {[%clk 0:00:03.3]} 44. Rg7+ {[%clk 0:00:13]} 44...
Kf8 {[%clk 0:00:03.2]} 45. Rh7 {[%clk 0:00:12.8]} 45... Bxb4+ {[%clk 0:00:03]}
46. Kd3 {[%clk 0:00:12.2]} 46... Bxa5 {[%clk 0:00:03.9]} 47. Rxb7 {[%clk
0:00:11.7]} 47... Bd8 {[%clk 0:00:04.5]} 48. Ng3 {[%clk 0:00:10.6]} 48... a5
{[%clk 0:00:04.2]} 49. Nf5 {[%clk 0:00:10.5]} 49... Nxf5 {[%clk 0:00:04.1]} 50.
exf5 {[%clk 0:00:10]} 50... a4 {[%clk 0:00:04.2]} 51. Ra7 {[%clk 0:00:10.1]}
51... Bf6 {[%clk 0:00:01.3]} 52. Rxa4 {[%clk 0:00:09.1]} 52... Kg7 {[%clk
0:00:02.2]} 53. Ke4 {[%clk 0:00:09.8]} 53... Kh6 {[%clk 0:00:02.6]} 54. Ra1
{[%clk 0:00:08.2]} 54... Kg5 {[%clk 0:00:03.5]} 55. Rg1+ {[%clk 0:00:08.6]}
55... Kh4 {[%clk 0:00:04]} 56. Rg6 {[%clk 0:00:09.5]} 56... Bg5 {[%clk
0:00:03.3]} 57. f6 {[%clk 0:00:09.1]} 57... Kh5 {[%clk 0:00:03.8]} 58. f7 {[%clk
0:00:07.4]} 58... Be7 {[%clk 0:00:04]} 59. Rg8 {[%clk 0:00:07.5]} 59... Kh4
{[%clk 0:00:03.8]} 60. f8=Q {[%clk 0:00:08.4]} 60... Bxf8 {[%clk 0:00:04.1]} 61.
Rxf8 {[%clk 0:00:09.3]} 61... Kxh3 {[%clk 0:00:05]} 62. Rf5 {[%clk 0:00:09.7]}
1-0

[Event "*** Titled Tuesday Blitz"]
[Site "Chess.com"]
[Date "2021.04.20"]
[Round "7"]
[White "FMOlexandrProhorov"]
[Black "mamonika"]
[Result "1-0"]
[WhiteElo "2237"]
[BlackElo "2049"]
[TimeControl "180+1"]
[EndTime "11:18:00 PDT"]
[Termination "FMOlexandrProhorov won on time"]

1. e4 {[%clk 0:03:00.9]} 1... c5 {[%clk 0:02:58.3]} 2. c3 {[%clk 0:03:00.3]}
2... Nf6 {[%clk 0:02:53.3]} 3. e5 {[%clk 0:02:59.6]} 3... Nd5 {[%clk 0:02:53.3]}
4. Nf3 {[%clk 0:03:00.2]} 4... e6 {[%clk 0:02:50.9]} 5. Bc4 {[%clk 0:02:59.9]}
5... Nb6 {[%clk 0:02:49.2]} 6. Bb3 {[%clk 0:02:59.8]} 6... d5 {[%clk 0:02:48.7]}
7. d4 {[%clk 0:02:56.8]} 7... Nc6 {[%clk 0:02:40]} 8. O-O {[%clk 0:02:56.3]}
8... cxd4 {[%clk 0:02:22.7]} 9. cxd4 {[%clk 0:02:55.6]} 9... Be7 {[%clk
0:02:20.6]} 10. Nc3 {[%clk 0:02:55.3]} 10... O-O {[%clk 0:02:19.1]} 11. Bc2
{[%clk 0:02:54.6]} 11... f6 {[%clk 0:02:02.2]} 12. exf6 {[%clk 0:02:51.8]} 12...
Bxf6 {[%clk 0:02:02.1]} 13. Re1 {[%clk 0:02:35.8]} 13... Nc4 {[%clk 0:01:49.9]}
14. b3 {[%clk 0:02:28.4]} 14... Nd6 {[%clk 0:01:45.4]} 15. Bf4 {[%clk
0:02:12.1]} 15... Bxd4 {[%clk 0:01:23.1]} 16. Nxd4 {[%clk 0:02:06.2]} 16... Rxf4
{[%clk 0:01:22.9]} 17. Nxe6 {[%clk 0:02:02.3]} 17... Bxe6 {[%clk 0:01:17]} 18.
Rxe6 {[%clk 0:02:03.2]} 18... Nd4 {[%clk 0:00:56.2]} 19. Re3 {[%clk 0:01:25.4]}
19... Nxc2 {[%clk 0:00:48.1]} 20. Qxc2 {[%clk 0:01:25.6]} 20... d4 {[%clk
0:00:47.8]} 21. g3 {[%clk 0:01:21.6]} 21... Rf7 {[%clk 0:00:37.3]} 22. Rd3
{[%clk 0:01:10.5]} 22... dxc3 {[%clk 0:00:36.8]} 23. Rad1 {[%clk 0:01:11.4]}
23... Rd7 {[%clk 0:00:31.9]} 24. Qxc3 {[%clk 0:01:11.9]} 24... Rc8 {[%clk
0:00:26.2]} 25. Qe5 {[%clk 0:01:11.9]} 25... Rc6 {[%clk 0:00:18.5]} 26. h4
{[%clk 0:01:07.7]} 26... Qf6 {[%clk 0:00:13.7]} 27. Qh5 {[%clk 0:01:02.2]} 27...
h6 {[%clk 0:00:07.9]} 28. Rf3 {[%clk 0:01:00.7]} 28... Qe6 {[%clk 0:00:05.9]}
29. Re3 {[%clk 0:01:00]} 29... Qf6 {[%clk 0:00:05.3]} 30. Red3 {[%clk 0:01:00]}
30... Kh7 {[%clk 0:00:04.7]} 31. g4 {[%clk 0:00:57.8]} 31... Re7 {[%clk
0:00:04.5]} 32. g5 {[%clk 0:00:56.4]} 32... Qg6 {[%clk 0:00:04.9]} 33. Qg4
{[%clk 0:00:53.6]} 33... Nf5 {[%clk 0:00:04]} 34. Rd8 {[%clk 0:00:51]} 34... h5
{[%clk 0:00:04.2]} 35. Qb4 {[%clk 0:00:39.1]} 35... Rce6 {[%clk 0:00:04.2]} 36.
Rc1 {[%clk 0:00:23.6]} 36... Re8 {[%clk 0:00:04.6]} 37. Rcc8 {[%clk 0:00:17.8]}
37... Rxd8 {[%clk 0:00:04.9]} 38. Rxd8 {[%clk 0:00:18.2]} 38... Re8 {[%clk
0:00:05.6]} 39. Rd7 {[%clk 0:00:17.8]} 39... Nxh4 {[%clk 0:00:05]} 40. Qxh4
{[%clk 0:00:16.9]} 40... Qb1+ {[%clk 0:00:03.8]} 41. Kh2 {[%clk 0:00:16.5]}
41... Qg6 {[%clk 0:00:03.8]} 42. Rd4 {[%clk 0:00:13.9]} 42... Qf5 {[%clk
0:00:03.2]} 43. Qxh5+ {[%clk 0:00:13.6]} 43... Kg8 {[%clk 0:00:03.6]} 44. Qh4
{[%clk 0:00:10.9]} 44... Qe5+ {[%clk 0:00:03]} 45. Rf4 {[%clk 0:00:10.3]} 45...
Rf8 {[%clk 0:00:03.5]} 46. Kg3 {[%clk 0:00:11.2]} 46... Qc3+ {[%clk 0:00:03]}
47. f3 {[%clk 0:00:10.9]} 47... Re8 {[%clk 0:00:03]} 48. g6 {[%clk 0:00:10.7]}
48... Qe1+ {[%clk 0:00:02.4]} 49. Kg4 {[%clk 0:00:10.3]} 49... Qxh4+ {[%clk
0:00:02.6]} 50. Kxh4 {[%clk 0:00:10.8]} 50... Re6 {[%clk 0:00:03]} 51. Kg5
{[%clk 0:00:10.3]} 51... Re5+ {[%clk 0:00:03.5]} 52. Rf5 {[%clk 0:00:10.3]}
52... Re6 {[%clk 0:00:03.6]} 53. Rc5 {[%clk 0:00:09.9]} 53... Kf8 {[%clk
0:00:03.8]} 54. Rc8+ {[%clk 0:00:09.8]} 54... Ke7 {[%clk 0:00:04.2]} 55. Rc7+
{[%clk 0:00:10.5]} 55... Kd6 {[%clk 0:00:04.8]} 56. Rxg7 {[%clk 0:00:10]} 56...
Re5+ {[%clk 0:00:05.2]} 57. Kf6 {[%clk 0:00:10.1]} 57... Rb5 {[%clk 0:00:04.7]}
58. f4 {[%clk 0:00:10.3]} 58... Rb4 {[%clk 0:00:04.6]} 59. f5 {[%clk 0:00:10.8]}
59... Rb6 {[%clk 0:00:04.2]} 60. Kf7 {[%clk 0:00:10.9]} 60... Kd7 {[%clk
0:00:04.7]} 61. f6 {[%clk 0:00:11.8]} 61... Kd8 {[%clk 0:00:04.5]} 62. Kg8
{[%clk 0:00:11.8]} 62... Ke8 {[%clk 0:00:04.7]} 63. f7+ {[%clk 0:00:11.9]} 63...
Kd7 {[%clk 0:00:05.4]} 64. f8=Q+ {[%clk 0:00:12]} 1-0

[Event "*** Titled Tuesday Blitz"]
[Site "Chess.com"]
[Date "2021.04.20"]
[Round "7"]
[White "frenchpin"]
[Black "AlexSuv"]
[Result "1-0"]
[WhiteElo "2431"]
[BlackElo "2559"]
[TimeControl "180+1"]
[EndTime "11:18:04 PDT"]
[Termination "frenchpin won by resignation"]

1. e4 {[%clk 0:03:00.9]} 1... c5 {[%clk 0:02:59.4]} 2. Nf3 {[%clk 0:03:00.7]}
2... e6 {[%clk 0:02:59.8]} 3. c3 {[%clk 0:03:00]} 3... Nf6 {[%clk 0:02:59.4]} 4.
e5 {[%clk 0:03:00]} 4... Nd5 {[%clk 0:02:58.1]} 5. Bc4 {[%clk 0:03:00.7]} 5...
d6 {[%clk 0:02:55.2]} 6. d4 {[%clk 0:03:00.8]} 6... cxd4 {[%clk 0:02:55.7]} 7.
cxd4 {[%clk 0:03:01.7]} 7... Be7 {[%clk 0:02:55.8]} 8. O-O {[%clk 0:03:01.9]}
8... O-O {[%clk 0:02:55.8]} 9. Qe2 {[%clk 0:02:58.2]} 9... b6 {[%clk 0:02:56]}
10. Rd1 {[%clk 0:02:44.2]} 10... Bb7 {[%clk 0:02:51.7]} 11. Bxd5 {[%clk
0:02:43.6]} 11... Bxd5 {[%clk 0:02:50.9]} 12. Nc3 {[%clk 0:02:43.5]} 12... Bb7
{[%clk 0:02:36.3]} 13. Bf4 {[%clk 0:02:41.2]} 13... d5 {[%clk 0:02:16.9]} 14. g3
{[%clk 0:02:27.2]} 14... Nd7 {[%clk 0:02:09.1]} 15. h4 {[%clk 0:02:26.7]} 15...
Re8 {[%clk 0:01:54.3]} 16. h5 {[%clk 0:02:25.5]} 16... h6 {[%clk 0:01:54.3]} 17.
Qe3 {[%clk 0:02:17.2]} 17... Bf8 {[%clk 0:01:51.9]} 18. g4 {[%clk 0:02:16.2]}
18... f6 {[%clk 0:01:52.4]} 19. Kg2 {[%clk 0:02:04.1]} 19... fxe5 {[%clk
0:01:42.9]} 20. Nxe5 {[%clk 0:02:03.9]} 20... Nxe5 {[%clk 0:01:43.3]} 21. Bxe5
{[%clk 0:02:04]} 21... Qh4 {[%clk 0:01:31.3]} 22. Qf4 {[%clk 0:01:50.4]} 22...
Bb4 {[%clk 0:01:15.4]} 23. Nb5 {[%clk 0:01:36.2]} 23... Rf8 {[%clk 0:01:10.3]}
24. Qg3 {[%clk 0:01:35.6]} 24... Qxg3+ {[%clk 0:01:00]} 25. Kxg3 {[%clk
0:01:36.5]} 25... Rac8 {[%clk 0:00:43.9]} 26. Rac1 {[%clk 0:01:32.4]} 26... a6
{[%clk 0:00:43.6]} 27. Nd6 {[%clk 0:00:58]} 27... Bxd6 {[%clk 0:00:37.8]} 28.
Bxd6 {[%clk 0:00:58.9]} 28... Rfd8 {[%clk 0:00:37]} 29. Bc7 {[%clk 0:00:55.5]}
29... Re8 {[%clk 0:00:24.5]} 30. Bxb6 {[%clk 0:00:54.9]} 30... Kf7 {[%clk
0:00:25.1]} 31. Bc7 {[%clk 0:00:53]} 31... Re7 {[%clk 0:00:24.3]} 32. Bd6 {[%clk
0:00:50.8]} 32... Ree8 {[%clk 0:00:24]} 33. b3 {[%clk 0:00:46.9]} 33... Red8
{[%clk 0:00:20.6]} 34. Bc7 {[%clk 0:00:43.2]} 34... Re8 {[%clk 0:00:13.7]} 35.
Rc3 {[%clk 0:00:41.3]} 35... Re7 {[%clk 0:00:12.4]} 36. Rdc1 {[%clk 0:00:39.6]}
36... Ba8 {[%clk 0:00:09.2]} 37. Be5 {[%clk 0:00:34.8]} 37... Rxc3+ {[%clk
0:00:09]} 38. Rxc3 {[%clk 0:00:35.7]} 38... Bb7 {[%clk 0:00:09.1]} 39. Rc5
{[%clk 0:00:30.7]} 39... Rd7 {[%clk 0:00:05.6]} 40. Kf4 {[%clk 0:00:30.1]} 40...
g6 {[%clk 0:00:05.3]} 41. Rc3 {[%clk 0:00:26.4]} 41... gxh5 {[%clk 0:00:05]} 42.
gxh5 {[%clk 0:00:27.3]} 42... Ke8 {[%clk 0:00:05.2]} 43. Rg3 {[%clk 0:00:23.7]}
43... Rf7+ {[%clk 0:00:05.3]} 44. Ke3 {[%clk 0:00:23.8]} 44... Rf5 {[%clk
0:00:05.1]} 45. Rg7 {[%clk 0:00:18.7]} 45... Bc6 {[%clk 0:00:03.8]} 46. Rg8+
{[%clk 0:00:13.4]} 46... Kd7 {[%clk 0:00:03.3]} 47. Rg7+ {[%clk 0:00:13.6]}
47... Kd8 {[%clk 0:00:03.9]} 48. Ra7 {[%clk 0:00:11.5]} 48... Rxh5 {[%clk
0:00:02.9]} 49. Rxa6 {[%clk 0:00:11.8]} 49... Bd7 {[%clk 0:00:03.3]} 50. a4
{[%clk 0:00:07]} 50... Rh3+ {[%clk 0:00:03.4]} 51. f3 {[%clk 0:00:07.2]} 51...
Be8 {[%clk 0:00:01.8]} 52. Ra8+ {[%clk 0:00:06.4]} 52... Ke7 {[%clk 0:00:02.3]}
53. a5 {[%clk 0:00:06.5]} 53... Bh5 {[%clk 0:00:02]} 54. Ra7+ {[%clk 0:00:06.5]}
54... Ke8 {[%clk 0:00:02.2]} 55. Ra8+ {[%clk 0:00:06.6]} 55... Ke7 {[%clk
0:00:02.4]} 56. Ra7+ {[%clk 0:00:04.7]} 56... Ke8 {[%clk 0:00:03.3]} 57. Rh7
{[%clk 0:00:02.1]} 57... Rxf3+ {[%clk 0:00:04.2]} 58. Kd2 {[%clk 0:00:02.3]}
58... Bg6 {[%clk 0:00:04.6]} 59. Rxh6 {[%clk 0:00:01.8]} 59... Rd3+ {[%clk
0:00:05.5]} 60. Ke2 {[%clk 0:00:02.1]} 60... Bf5 {[%clk 0:00:06.1]} 61. Rxe6+
{[%clk 0:00:01.6]} 61... Bxe6 {[%clk 0:00:06.2]} 62. Kxd3 {[%clk 0:00:02.5]}
62... Bd7 {[%clk 0:00:06.4]} 63. Kc3 {[%clk 0:00:03.4]} 63... Bb5 {[%clk
0:00:06.7]} 64. Kb4 {[%clk 0:00:04.3]} 64... Ba6 {[%clk 0:00:07.3]} 65. Kc5
{[%clk 0:00:05.2]} 65... Kd7 {[%clk 0:00:07.8]} 66. Kxd5 {[%clk 0:00:05]} 66...
Bb5 {[%clk 0:00:08.7]} 67. Kc5 {[%clk 0:00:05.9]} 67... Ba6 {[%clk 0:00:09.2]}
68. b4 {[%clk 0:00:06.4]} 68... Bb7 {[%clk 0:00:09.3]} 69. b5 {[%clk 0:00:06.8]}
69... Be4 {[%clk 0:00:10.2]} 70. a6 {[%clk 0:00:06.3]} 70... Ba8 {[%clk
0:00:10.3]} 71. b6 {[%clk 0:00:06.5]} 71... Kc8 {[%clk 0:00:10.9]} 72. b7+
{[%clk 0:00:06.5]} 72... Bxb7 {[%clk 0:00:11.6]} 73. axb7+ {[%clk 0:00:07.4]}
73... Kxb7 {[%clk 0:00:12.5]} 74. Kd6 {[%clk 0:00:07.8]} 74... Kc8 {[%clk
0:00:13.4]} 1-0

[Event "*** Titled Tuesday Blitz"]
[Site "Chess.com"]
[Date "2021.04.20"]
[Round "7"]
[White "Iball95"]
[Black "AwareIdea"]
[Result "0-1"]
[WhiteElo "2598"]
[BlackElo "2482"]
[TimeControl "180+1"]
[EndTime "11:18:05 PDT"]
[Termination "AwareIdea won by checkmate"]

1. e4 {[%clk 0:03:00.9]} 1... e5 {[%clk 0:02:55.8]} 2. Nf3 {[%clk 0:03:00.4]}
2... Nc6 {[%clk 0:02:56]} 3. Nc3 {[%clk 0:03:00.3]} 3... Nf6 {[%clk 0:02:56.1]}
4. Bb5 {[%clk 0:03:00]} 4... Bd6 {[%clk 0:02:54.5]} 5. a3 {[%clk 0:02:58.8]}
5... O-O {[%clk 0:02:54.3]} 6. d3 {[%clk 0:02:58.8]} 6... a6 {[%clk 0:02:54.6]}
7. Bc4 {[%clk 0:02:58.5]} 7... b5 {[%clk 0:02:54.9]} 8. Ba2 {[%clk 0:02:57.9]}
8... Bb7 {[%clk 0:02:55.4]} 9. g4 {[%clk 0:02:56.8]} 9... Nd4 {[%clk 0:02:52.6]}
10. g5 {[%clk 0:02:51.5]} 10... Ne8 {[%clk 0:02:44.5]} 11. h4 {[%clk 0:02:48.9]}
11... c5 {[%clk 0:02:31.5]} 12. h5 {[%clk 0:02:42.7]} 12... Nc7 {[%clk
0:02:30.5]} 13. g6 {[%clk 0:02:31.5]} 13... Nce6 {[%clk 0:02:28.4]} 14. gxh7+
{[%clk 0:01:24.7]} 14... Kxh7 {[%clk 0:02:29.3]} 15. h6 {[%clk 0:01:10.3]} 15...
g6 {[%clk 0:02:27.7]} 16. Nd5 {[%clk 0:01:04.7]} 16... Bxd5 {[%clk 0:02:18.8]}
17. Bxd5 {[%clk 0:01:03.6]} 17... Nxf3+ {[%clk 0:02:18]} 18. Qxf3 {[%clk
0:01:03.7]} 18... Nd4 {[%clk 0:02:18.9]} 19. Qd1 {[%clk 0:01:03.4]} 19... Rb8
{[%clk 0:02:15.9]} 20. c3 {[%clk 0:01:03.5]} 20... Ne6 {[%clk 0:02:04.3]} 21.
Qf3 {[%clk 0:01:03.2]} 21... Qe7 {[%clk 0:01:54.4]} 22. Bd2 {[%clk 0:00:52.8]}
22... a5 {[%clk 0:01:54.1]} 23. Ke2 {[%clk 0:00:24.2]} 23... b4 {[%clk
0:01:43.4]} 24. axb4 {[%clk 0:00:25.1]} 24... axb4 {[%clk 0:01:43.5]} 25. Ra6
{[%clk 0:00:24.2]} 25... bxc3 {[%clk 0:01:42.5]} 26. bxc3 {[%clk 0:00:25.1]}
26... Rb2 {[%clk 0:01:42]} 27. Ra2 {[%clk 0:00:21.4]} 27... Rfb8 {[%clk
0:01:30]} 28. Rha1 {[%clk 0:00:20.4]} 28... Nf4+ {[%clk 0:01:25.9]} 29. Kf1
{[%clk 0:00:20.1]} 29... Rxa2 {[%clk 0:01:19.9]} 30. Rxa2 {[%clk 0:00:21]} 30...
Rb1+ {[%clk 0:01:19.6]} 31. Be1 {[%clk 0:00:21.4]} 31... Kxh6 {[%clk 0:01:01.8]}
32. Ra7 {[%clk 0:00:21]} 32... Rb6 {[%clk 0:00:47.3]} 33. Bd2 {[%clk 0:00:20]}
33... Kg7 {[%clk 0:00:46.7]} 34. Bxf4 {[%clk 0:00:20.1]} 34... exf4 {[%clk
0:00:47.6]} 35. d4 {[%clk 0:00:17.8]} 35... cxd4 {[%clk 0:00:47.5]} 36. cxd4
{[%clk 0:00:18.7]} 36... Rb1+ {[%clk 0:00:46.9]} 37. Ke2 {[%clk 0:00:18.7]}
37... Rb2+ {[%clk 0:00:47.1]} 38. Kf1 {[%clk 0:00:18.6]} 38... Rb1+ {[%clk
0:00:33.4]} 39. Ke2 {[%clk 0:00:18.8]} 39... Bb8 {[%clk 0:00:33.3]} 40. Rb7
{[%clk 0:00:15.6]} 40... Rxb7 {[%clk 0:00:31.4]} 41. Bxb7 {[%clk 0:00:16.5]}
41... Qb4 {[%clk 0:00:31.4]} 42. e5 {[%clk 0:00:16.2]} 42... Qxd4 {[%clk
0:00:29.8]} 43. Qb3 {[%clk 0:00:13.6]} 43... Bxe5 {[%clk 0:00:27.9]} 44. Bd5
{[%clk 0:00:13.3]} 44... f6 {[%clk 0:00:23]} 45. Kf1 {[%clk 0:00:12.8]} 45... f5
{[%clk 0:00:20.8]} 46. Bf3 {[%clk 0:00:13]} 46... Kf6 {[%clk 0:00:20.3]} 47. Qb7
{[%clk 0:00:10.7]} 47... Qd6 {[%clk 0:00:18.8]} 48. Qc8 {[%clk 0:00:10.4]} 48...
Kf7 {[%clk 0:00:17.1]} 49. Qc4+ {[%clk 0:00:08.9]} 49... Kg7 {[%clk 0:00:16.1]}
50. Bd5 {[%clk 0:00:08.8]} 50... g5 {[%clk 0:00:16.1]} 51. f3 {[%clk 0:00:08.2]}
51... g4 {[%clk 0:00:15.7]} 52. Kg2 {[%clk 0:00:08.6]} 52... Kf6 {[%clk
0:00:15.4]} 53. Qb3 {[%clk 0:00:08.3]} 53... Kg5 {[%clk 0:00:15.1]} 54. Qd3
{[%clk 0:00:08.1]} 54... Qf6 {[%clk 0:00:14.2]} 55. Qf1 {[%clk 0:00:06.1]} 55...
Qh6 {[%clk 0:00:13.8]} 56. Kg1 {[%clk 0:00:06]} 56... d6 {[%clk 0:00:12.8]} 57.
Qg2 {[%clk 0:00:03.8]} 57... Bd4+ {[%clk 0:00:12.5]} 58. Kf1 {[%clk 0:00:03.7]}
58... Qf6 {[%clk 0:00:11.8]} 59. Qe2 {[%clk 0:00:04.1]} 59... Qe5 {[%clk
0:00:11.7]} 60. Qb5 {[%clk 0:00:03.2]} 60... Qe3 {[%clk 0:00:10.3]} 61. Qe2
{[%clk 0:00:02.4]} 61... Qg1# {[%clk 0:00:10]} 0-1